[Event "2nd Asian Nations Team Cup U14 2019"]
[Site "Shenzhen"]
[Date "2019.12.21"]
[Round "3.3"]
[White "Liu, Fung Ming Mathew"]
[Black "Li, Yucheng Robinson"]
[Result "0-1"]
[ECO "B01"]
[WhiteElo "1493"]
[BlackElo "1185"]
[Annotator "NA RC"]
[PlyCount "204"]
[EventDate "2019.12.19"]
[EventType "team-tourn"]
[EventCountry "CHN"]
[SourceTitle "playchess.com"]
[Source "ChessBase"]
[SourceQuality "1"]
[TimeControl "5400+30"]

1. e4 {[%emt 0:00:00]} d5 {[%emt 0:00:00]} 2. exd5 {[%emt 0:00:00]} Qxd5 {[%emt 0:00:00]} 3. Nc3 {[%emt 0:00:08]} Qa5 {[%emt 0:00:14]} 4. d4 {[%emt 0:00:00]} Nf6 {[%emt 0:00:00]} 5. Nf3 {[%emt 0:00:04]} Bg4 {[%emt 0:00:00]} 6. h3 {[%emt 0:00:06]} Bh5 {[%emt 0:00:00]} 7. g4 {[%emt 0:00:05]} Bg6 {[%emt 0:00:07]} 8. Ne5 {[%emt 0:00:11]} e6 {[%emt 0:00:15]} 9. h4 {[%emt 0:01:09]} Be4 {[%emt 0:01:57]} 10. Rh3 {[%emt 0:01:46]} Bb4 {[%emt 0:02:12]} 11. Nc4 {[%emt 0:01:02]} Bxc3+ {[%emt 0:00:02]} 12. Rxc3 {[%emt 0:00:00]} Qb4 {[%emt 0:00:25]} 13. a3 {[%emt 0:00:11]} Qe7 {[%emt 0:00:40]} 14. Bg5 {[%emt 0:01:26]} h6 {[%emt 0:01:00]} 15. Bxf6 {[%emt 0:00:17]} Qxf6 {[%emt 0:00:43]} 16. Nd6+ {[%emt 0:02:39]} cxd6 {[%emt 0:01:13]} 17. Rc8+ {[%emt 0:00:05]} Ke7 {[%emt 0:00:41]} 18. Rxh8 {[%emt 0:00:44]} Qxh4 {[%emt 0:01:47]} 19. Qe2 {[%emt 0:01:51]} Bc6 {[%emt 0:01:36]} 20. O-O-O {[%emt 0:00:17]} b6 {[%emt 0:02:12]} 21. Kb1 {[%emt 0:05:45]} Qf6 {[%emt 0:00:38]} 22. d5 {[%emt 0:01:31]} Bb7 {[%emt 0:02:14]} 23. dxe6 {[%emt 0:00:00]} fxe6 {[%emt 0:06:23]} 24. Qd3 {[%emt 0:00:35]} d5 {[%emt 0:01:48]} 25. Qb5 {[%emt 0:04:03]} Nd7 {[%emt 0:03:54]} 26. Rxa8 {[%emt 0:03:09]} Bxa8 {[%emt 0:00:15]} 27. Qe2 {[%emt 0:00:16]} Bb7 {[%emt 0:02:13]} 28. Bg2 {[%emt 0:01:07]} Qe5 {[%emt 0:03:03]} 29. Re1 {[%emt 0:01:39]} Qxe2 {[%emt 0:00:34]} 30. Rxe2 {[%emt 0:00:07]} Ba6 {[%emt 0:00:09]} 31. Re3 {[%emt 0:00:26]} Nf6 {[%emt 0:01:16]} 32. Bf3 {[%emt 0:03:20]} g5 {[%emt 0:01:57]} 33. b3 {[%emt 0:00:41]} Kd6 {[%emt 0:00:24]} 34. Kb2 {[%emt 0:00:09]} e5 {[%emt 0:00:21]} 35. Re1 {[%emt 0:00:23]} e4 {[%emt 0:00:01]} 36. Bd1 {[%emt 0:00:05]} Bc8 {[%emt 0:01:28]} 37. Rg1 {[%emt 0:02:24]} d4 {[%emt 0:03:18]} 38. Kc1 {[%emt 0:00:00]} Ke5 {[%emt 0:00:47]} 39. f3 {[%emt 0:00:10]} e3 {[%emt 0:00:17]} 40. Be2 {[%emt 0:00:05]} Kf4 {[%emt 0:00:21]} 41. Rh1 {[%emt 0:00:17]} Nd5 {[%emt 0:00:24]} 42. Rd1 {[%emt 0:00:51]} Nc3 {[%emt 0:01:01]} 43. Rxd4+ {[%emt 0:00:31]} Ke5 {[%emt 0:00:34]} 44. Rc4 {[%emt 0:00:15]} Nxe2+ {[%emt 0:00:15]} 45. Kd1 {[%emt 0:00:07]} Ba6 {[%emt 0:00:25]} 46. Re4+ {[%emt 0:01:24]} Kf6 {[%emt 0:01:32]} 47. Rxe3 {[%emt 0:00:00]} Nd4 {[%emt 0:00:38]} 48. Kd2 {[%emt 0:00:00]} Bb7 {[%emt 0:00:12]} 49. Rc3 {[%emt 0:06:19]} Nxf3+ {[%emt 0:00:18]} 50. Kd1 {[%emt 0:06:50]} Nd4 {[%emt 0:00:00]} 51. Rd3 {[%emt 0:00:13]} Ke5 {[%emt 0:00:00]} 52. Kd2 {[%emt 0:03:28]} Be4 {[%emt 0:01:46]} 53. Rh3 {[%emt 0:05:47]} Nf3+ {[%emt 0:01:06]} 54. Ke3 {[%emt 0:01:02]} Nh4 {[%emt 0:00:18]} 55. c3 {[%emt 0:01:53]} Bd5 {[%emt 0:00:38]} 56. c4 {[%emt 0:00:19]} Be6 {[%emt 0:00:26]} 57. Rg3 {[%emt 0:00:34]} h5 {[%emt 0:01:24]} 58. Rg1 {[%emt 0:03:55]} Bxg4 {[%emt 0:00:25]} 59. b4 {[%emt 0:00:55]} Nf5+ {[%emt 0:00:10]} 60. Kd3 {[%emt 0:00:51]} Kd6 {[%emt 0:00:30]} 61. Ke4 {[%emt 0:00:14]} Ne7 {[%emt 0:00:35]} 62. Rf1 {[%emt 0:01:33]} Bf5+ {[%emt 0:00:33]} 63. Ke3 {[%emt 0:00:48]} h4 {[%emt 0:00:17]} 64. Rg1 {[%emt 0:00:27]} g4 {[%emt 0:00:10]} 65. Kf4 {[%emt 0:00:16]} h3 {[%emt 0:00:50]} 66. Rd1+ {[%emt 0:00:40]} Ke6 {[%emt 0:00:25]} 67. Re1+ {[%emt 0:00:08]} Kf6 {[%emt 0:00:12]} 68. a4 {[%emt 0:02:20]} Nc6 {[%emt 0:00:24]} 69. b5 {[%emt 0:02:49]} Nb4 {[%emt 0:00:28]} 70. Kg3 {[%emt 0:00:38]} Nd3 {[%emt 0:00:40]} 71. Re2 {[%emt 0:02:40]} Ne5 {[%emt 0:00:27]} 72. c5 {[%emt 0:01:19]} bxc5 {[%emt 0:00:35]} 73. a5 {[%emt 0:00:35]} Nc4 {[%emt 0:00:47]} 74. Ra2 {[%emt 0:02:42]} Be6 {[%emt 0:01:41]} 75. Ra1 {[%emt 0:05:15]} Bd7 {[%emt 0:00:18]} 76. b6 {[%emt 0:01:24]} axb6 {[%emt 0:01:02]} 77. axb6 {[%emt 0:00:16]} Nxb6 {[%emt 0:00:55]} 78. Ra6 {[%emt 0:00:13]} Ke5 {[%emt 0:00:15]} 79. Rxb6 {[%emt 0:00:11]} c4 {[%emt 0:00:56]} 80. Rb8 {[%emt 0:01:35]} c3 {[%emt 0:00:30]} 81. Rb3 {[%emt 0:01:01]} Kd4 {[%emt 0:02:13]} 82. Rb7 {[%emt 0:00:23]} Bf5 {[%emt 0:00:36]} 83. Rb8 {[%emt 0:00:24]} c2 {[%emt 0:00:36]} 84. Rd8+ {[%emt 0:00:17]} Kc3 {[%emt 0:00:14]} 85. Rd6 {[%emt 0:00:39]} c1=Q {[%emt 0:00:32]} 86. Rc6+ {[%emt 0:00:05]} Kd2 {[%emt 0:00:07]} 87. Rxc1 {[%emt 0:00:09]} Kxc1 {[%emt 0:00:04]} 88. Kh2 {[%emt 0:00:08]} Kd2 {[%emt 0:00:08]} 89. Kg3 {[%emt 0:00:03]} Ke2 {[%emt 0:00:10]} 90. Kh2 {[%emt 0:00:22]} Kf2 {[%emt 0:00:11]} 91. Kh1 {[%emt 0:00:05]} Be4+ {[%emt 0:00:04]} 92. Kh2 {[%emt 0:00:05]} g3+ {[%emt 0:00:06]} 93. Kxh3 {[%emt 0:00:17]} g2 {[%emt 0:00:18]} 94. Kh4 {[%emt 0:00:04]} g1=Q {[%emt 0:00:13]} 95. Kh5 {[%emt 0:00:04]} Bf3+ {[%emt 0:00:15]} 96. Kh6 {[%emt 0:00:07]} Ke3 {[%emt 0:00:23]} 97. Kh7 {[%emt 0:00:05]} Kf4 {[%emt 0:00:07]} 98. Kh6 {[%emt 0:00:09]} Be4 {[%emt 0:00:08]} 99. Kh5 {[%emt 0:01:05]} Qg6+ {[%emt 0:00:25]} 100. Kh4 Qg1 {[%emt 0:00:05]} 101. Kh5 {[%emt 0:00:03]} Qg6+ {[%emt 0:00:02]} 102. Kh4 {[%emt 0:00:02]} Qg1 {[%emt 0:00:02]} 0-1

[Event "2nd Asian Nations Team Cup U14 2019"]
[Site "Shenzhen"]
[Date "2019.12.21"]
[Round "3.4"]
[White "Huang, Yuen Tung"]
[Black "Lee, Gerent Chak Yan"]
[Result "1-0"]
[ECO "C06"]
[WhiteElo "1293"]
[BlackElo "1450"]
[Annotator "NA RC"]
[PlyCount "107"]
[EventDate "2019.12.19"]
[EventType "team-tourn"]
[EventCountry "CHN"]
[SourceTitle "playchess.com"]
[Source "ChessBase"]
[SourceQuality "1"]
[TimeControl "5400+30"]

1. e4 {[%emt 0:00:00]} e6 {[%emt 0:00:00]} 2. d4 {[%emt 0:00:00]} d5 {[%emt 0:00:00]} 3. Nd2 {[%emt 0:00:00]} Nf6 {[%emt 0:00:09]} 4. e5 {[%emt 0:00:00]} Nfd7 {[%emt 0:00:06]} 5. Ngf3 {[%emt 0:00:18]} c5 {[%emt 0:00:10]} 6. c3 {[%emt 0:00:07]} Nc6 {[%emt 0:00:18]} 7. Bd3 {[%emt 0:00:31]} Qb6 {[%emt 0:02:48]} 8. Qa4 {[%emt 0:04:10]} Be7 {[%emt 0:00:00]} 9. Nf1 {[%emt 0:03:14]} a6 {[%emt 0:02:55]} 10. Ng3 {[%emt 0:03:11]} Qa7 {[%emt 0:00:22]} 11. Be3 {[%emt 0:02:15]} b5 {[%emt 0:02:03]} 12. Qd1 {[%emt 0:01:08]} c4 {[%emt 0:00:40]} 13. Bc2 {[%emt 0:00:34]} h5 {[%emt 0:14:19]} 14. Bg5 {[%emt 0:12:48]} Nf8 {[%emt 0:00:00]} 15. Qe2 {[%emt 0:04:57]} Bd7 {[%emt 0:00:00]} 16. Bxe7 {[%emt 0:01:41]} Nxe7 {[%emt 0:00:00]} 17. h4 {[%emt 0:00:16]} O-O-O {[%emt 0:00:00]} 18. Ng5 {[%emt 0:01:26]} Be8 {[%emt 0:00:00]} 19. b3 {[%emt 0:41:54]} f6 {[%emt 0:47:17]} 20. exf6 {[%emt 0:00:00]} gxf6 {[%emt 0:00:18]} 21. Nxe6 {[%emt 0:00:00]} Nxe6 {[%emt 0:00:08]} 22. Qxe6+ {[%emt 0:00:00]} Bd7 {[%emt 0:00:06]} 23. Qe2 {[%emt 0:00:00]} f5 {[%emt 0:03:58]} 24. O-O-O {[%emt 0:00:00]} Rde8 {[%emt 0:02:56]} 25. Nxh5 {[%emt 0:00:00]} Qb6 {[%emt 0:00:32]} 26. Qf3 {[%emt 0:00:00]} Qa5 {[%emt 0:02:34]} 27. Kb2 {[%emt 0:00:00]} b4 {[%emt 0:01:05]} 28. cxb4 {[%emt 0:00:00]} Qxb4 {[%emt 0:00:38]} 29. Nf6 {[%emt 0:00:00]} Ref8 {[%emt 0:03:05]} 30. Nxd5 {[%emt 0:00:39]} Nxd5 {[%emt 0:01:41]} 31. Qxd5 {[%emt 0:00:14]} c3+ {[%emt 0:00:10]} 32. Ka1 {[%emt 0:00:12]} a5 {[%emt 0:02:52]} 33. Qc5+ {[%emt 0:03:26]} Kb7 {[%emt 0:00:12]} 34. Qxb4+ {[%emt 0:03:37]} axb4 {[%emt 0:00:15]} 35. d5 {[%emt 0:00:14]} Kb6 {[%emt 0:02:09]} 36. Rd4 {[%emt 0:03:24]} Bb5 {[%emt 0:06:04]} 37. Rxb4 {[%emt 0:05:28]} Kc5 {[%emt 0:00:36]} 38. Rf4 {[%emt 0:00:19]} Re8 {[%emt 0:00:57]} 39. Rxf5 {[%emt 0:03:14]} Re2 {[%emt 0:01:44]} 40. Kb1 {[%emt 0:00:36]} Ra8 {[%emt 0:00:45]} 41. a4 {[%emt 0:00:22]} Bxa4 {[%emt 0:01:14]} 42. d6+ {[%emt 0:01:40]} Kxd6 {[%emt 0:02:07]} 43. Rd1+ {[%emt 0:00:48]} Ke6 {[%emt 0:00:28]} 44. Rf3 {[%emt 0:00:53]} Rc8 {[%emt 0:02:29]} 45. Bf5+ {[%emt 0:00:27]} Ke5 {[%emt 0:01:01]} 46. Bxc8 {[%emt 0:00:28]} Bxb3 {[%emt 0:01:30]} 47. Rf5+ {[%emt 0:00:49]} Ke4 {[%emt 0:00:14]} 48. f3+ {[%emt 0:00:16]} Ke3 {[%emt 0:00:22]} 49. Re5+ {[%emt 0:00:31]} Kf4 {[%emt 0:00:20]} 50. Rxe2 {[%emt 0:00:40]} Bxd1 {[%emt 0:00:09]} 51. Re4+ {[%emt 0:01:12]} Kg3 {[%emt 0:00:11]} 52. Rg4+ {[%emt 0:00:15]} Kf2 {[%emt 0:00:04]} 53. h5 {[%emt 0:00:26]} Ke3 {[%emt 0:00:12]} 54. Kc1 {[%emt 0:00:10]} 1-0

[Event "2nd Asian Nations Team Cup U14 2019"]
[Site "Shenzhen"]
[Date "2019.12.21"]
[Round "3.6"]
[White "Tsogtbayar, Batlut"]
[Black "Zhang, Yuanxiao"]
[Result "1-0"]
[ECO "B06"]
[WhiteElo "1404"]
[BlackElo "1545"]
[Annotator "NA RC"]
[PlyCount "115"]
[EventDate "2019.12.19"]
[EventType "team-tourn"]
[EventCountry "CHN"]
[SourceTitle "playchess.com"]
[Source "ChessBase"]
[SourceQuality "1"]
[TimeControl "5400+30"]

1. d4 {[%emt 0:00:00]} Nf6 {[%emt 0:00:00]} 2. g3 {[%emt 0:00:00]} g6 {[%emt 0:00:17]} 3. Bg2 {[%emt 0:00:04]} Bg7 {[%emt 0:00:09]} 4. e4 {[%emt 0:01:02]} d6 {[%emt 0:01:10]} 5. Ne2 {[%emt 0:00:20]} O-O {[%emt 0:00:56]} 6. O-O {[%emt 0:00:12]} Nbd7 {[%emt 0:06:31]} 7. h3 {[%emt 0:00:33]} c6 {[%emt 0:03:49]} 8. c3 {[%emt 0:01:50]} Qc7 {[%emt 0:00:40]} 9. Be3 {[%emt 0:01:20]} b5 {[%emt 0:01:53]} 10. Nd2 {[%emt 0:00:46]} Bb7 {[%emt 0:00:47]} 11. Kh2 {[%emt 0:00:33]} c5 {[%emt 0:02:57]} 12. f4 {[%emt 0:02:01]} cxd4 {[%emt 0:07:29]} 13. cxd4 {[%emt 0:05:56]} Rac8 {[%emt 0:00:59]} 14. Rc1 {[%emt 0:03:57]} Qb6 {[%emt 0:01:58]} 15. Qb3 {[%emt 0:01:41]} Rxc1 {[%emt 0:05:05]} 16. Rxc1 {[%emt 0:00:30]} Rc8 {[%emt 0:00:54]} 17. Rxc8+ {[%emt 0:01:15]} Bxc8 {[%emt 0:00:45]} 18. e5 {[%emt 0:02:00]} Ne8 {[%emt 0:08:45]} 19. e6 {[%emt 0:01:31]} fxe6 {[%emt 0:01:55]} 20. Qxe6+ {[%emt 0:00:53]} Kh8 {[%emt 0:00:00]} 21. Qxe7 {[%emt 0:01:49]} Nef6 {[%emt 0:00:00]} 22. Ne4 {[%emt 0:01:03]} Nxe4 {[%emt 0:01:00]} 23. Bxe4 {[%emt 0:01:02]} Qc7 {[%emt 0:03:22]} 24. Qe8+ {[%emt 0:02:32]} Nf8 {[%emt 0:02:02]} 25. Qxb5 {[%emt 0:00:38]} Qe7 {[%emt 0:00:23]} 26. Nc3 {[%emt 0:00:36]} Qe6 {[%emt 0:02:38]} 27. g4 {[%emt 0:01:39]} a6 {[%emt 0:06:55]} 28. Qd3 {[%emt 0:02:26]} Nd7 {[%emt 0:01:40]} 29. f5 {[%emt 0:00:52]} gxf5 {[%emt 0:01:52]} 30. Bxf5 {[%emt 0:00:08]} Qe7 {[%emt 0:00:51]} 31. Nd5 {[%emt 0:00:42]} Qf7 {[%emt 0:02:59]} 32. Qe4 {[%emt 0:00:43]} Bb7 {[%emt 0:06:10]} 33. Be6 {[%emt 0:01:49]} Be5+ {[%emt 0:01:43]} 34. Qxe5+ {[%emt 0:00:41]} Nxe5 {[%emt 0:00:15]} 35. Bxf7 {[%emt 0:00:09]} Nxf7 {[%emt 0:00:05]} 36. Nc3 {[%emt 0:00:18]} Nd8 {[%emt 0:01:09]} 37. d5 {[%emt 0:00:36]} Kg7 {[%emt 0:00:33]} 38. Kg3 {[%emt 0:00:18]} Nf7 {[%emt 0:04:16]} 39. Kf4 {[%emt 0:00:47]} Kg6 {[%emt 0:02:16]} 40. Bd4 {[%emt 0:00:58]} h5 {[%emt 0:02:09]} 41. gxh5+ {[%emt 0:01:20]} Kxh5 {[%emt 0:00:07]} 42. Kf5 {[%emt 0:00:16]} Bc8+ {[%emt 0:00:07]} 43. Kf6 {[%emt 0:00:17]} Nd8 {[%emt 0:00:34]} 44. Ke7 {[%emt 0:00:34]} Nb7 {[%emt 0:00:23]} 45. Ne4 {[%emt 0:00:22]} Bxh3 {[%emt 0:00:10]} 46. Nxd6 {[%emt 0:00:07]} Nxd6 {[%emt 0:03:36]} 47. Kxd6 {[%emt 0:00:10]} Kg6 {[%emt 0:00:03]} 48. Ke7 {[%emt 0:00:14]} Kf5 {[%emt 0:00:56]} 49. d6 {[%emt 0:00:08]} Ke4 {[%emt 0:00:22]} 50. Bc3 {[%emt 0:00:08]} Kd3 {[%emt 0:00:15]} 51. a4 {[%emt 0:00:16]} Kc4 {[%emt 0:00:30]} 52. a5 {[%emt 0:00:08]} Kb3 {[%emt 0:00:35]} 53. d7 {[%emt 0:00:06]} Bf1 {[%emt 0:00:30]} 54. d8=Q {[%emt 0:00:11]} Bb5 {[%emt 0:00:17]} 55. Be5 {[%emt 0:00:21]} Ka4 {[%emt 0:00:42]} 56. Qd4+ {[%emt 0:00:10]} Kb3 {[%emt 0:00:36]} 57. Qc3+ {[%emt 0:00:07]} Ka2 {[%emt 0:00:15]} 58. b4 {[%emt 0:00:10]} 1-0

[Event "2nd Asian Nations Team Cup U14 2019"]
[Site "Shenzhen"]
[Date "2019.12.21"]
[Round "3.10"]
[White "Xiao, Tong"]
[Black "Wei, Jianzhou"]
[Result "1-0"]
[ECO "B18"]
[WhiteElo "1925"]
[BlackElo "1755"]
[Annotator "NA RC"]
[PlyCount "125"]
[EventDate "2019.12.19"]
[EventType "team-tourn"]
[EventCountry "CHN"]
[SourceTitle "playchess.com"]
[Source "ChessBase"]
[SourceQuality "1"]
[TimeControl "5400+30"]

1. e4 {[%emt 0:00:00]} c6 {[%emt 0:00:00]} 2. d4 {[%emt 0:00:15]} d5 {[%emt 0:00:00]} 3. Nc3 {[%emt 0:00:28]} dxe4 {[%emt 0:00:10]} 4. Nxe4 {[%emt 0:00:08]} Bf5 {[%emt 0:00:12]} 5. Ng3 {[%emt 0:00:16]} Bg6 {[%emt 0:00:09]} 6. h4 {[%emt 0:00:31]} h6 {[%emt 0:00:11]} 7. N1e2 {[%emt 0:00:28]} Nf6 {[%emt 0:01:50]} 8. Nf4 {[%emt 0:01:47]} Bh7 {[%emt 0:00:42]} 9. Bc4 {[%emt 0:01:21]} e5 {[%emt 0:05:25]} 10. dxe5 {[%emt 0:02:53]} Qa5+ {[%emt 0:02:27]} 11. c3 {[%emt 0:00:26]} Qxe5+ {[%emt 0:00:05]} 12. Be3 {[%emt 0:00:06]} b5 {[%emt 0:03:41]} 13. Be2 {[%emt 0:00:45]} Be7 {[%emt 0:03:45]} 14. Bf3 {[%emt 0:02:41]} O-O {[%emt 0:05:53]} 15. Qd4 {[%emt 0:02:47]} Qc7 {[%emt 0:05:14]} 16. Nfh5 {[%emt 0:00:49]} Nbd7 {[%emt 0:13:42]} 17. Bf4 {[%emt 0:00:46]} Qb7 {[%emt 0:01:03]} 18. O-O {[%emt 0:01:53]} Rfd8 {[%emt 0:04:38]} 19. Qe3 {[%emt 0:01:20]} Nxh5 {[%emt 0:02:36]} 20. Nxh5 {[%emt 0:00:33]} Bc5 {[%emt 0:09:41]} 21. Qc1 {[%emt 0:00:18]} Bf8 {[%emt 0:03:25]} 22. b4 {[%emt 0:02:38]} a5 {[%emt 0:01:35]} 23. Rd1 {[%emt 0:01:17]} Bg6 {[%emt 0:06:24]} 24. a3 {[%emt 0:01:50]} Bxh5 {[%emt 0:06:38]} 25. Bxh5 {[%emt 0:00:08]} Nf6 {[%emt 0:00:06]} 26. Bf3 {[%emt 0:00:16]} Nd5 {[%emt 0:00:57]} 27. Bxd5 {[%emt 0:03:25]} cxd5 {[%emt 0:01:43]} 28. Be5 {[%emt 0:00:26]} f6 {[%emt 0:00:52]} 29. Bd4 {[%emt 0:00:07]} Qc6 {[%emt 0:00:26]} 30. Qf4 {[%emt 0:01:05]} axb4 {[%emt 0:01:46]} 31. axb4 {[%emt 0:00:11]} Ra4 {[%emt 0:01:41]} 32. Re1 {[%emt 0:01:05]} Qd7 {[%emt 0:03:20]} 33. Rad1 {[%emt 0:00:30]} Qf7 {[%emt 0:01:49]} 34. Qf5 {[%emt 0:00:37]} Ra6 {[%emt 0:00:46]} 35. h5 {[%emt 0:00:17]} Qd7 {[%emt 0:02:13]} 36. Qxd7 {[%emt 0:00:41]} Rxd7 {[%emt 0:00:01]} 37. Re8 {[%emt 0:00:07]} Kf7 {[%emt 0:05:13]} 38. Rb8 {[%emt 0:00:05]} Rc6 {[%emt 0:01:07]} 39. Rxb5 {[%emt 0:00:26]} Rc4 {[%emt 0:01:07]} 40. f3 {[%emt 0:00:40]} Bd6 {[%emt 0:01:23]} 41. Kf2 {[%emt 0:00:25]} Bc7 {[%emt 0:01:16]} 42. Rc5 {[%emt 0:01:21]} Bb6 {[%emt 0:02:38]} 43. Rxc4 {[%emt 0:00:05]} dxc4 {[%emt 0:00:06]} 44. Ke2 {[%emt 0:00:29]} Re7+ {[%emt 0:01:32]} 45. Kd2 {[%emt 0:00:09]} Bc7 {[%emt 0:00:54]} 46. Re1 {[%emt 0:00:38]} Bf4+ {[%emt 0:00:38]} 47. Kd1 {[%emt 0:00:07]} Rd7 {[%emt 0:00:38]} 48. Kc2 {[%emt 0:00:21]} Bg3 {[%emt 0:00:41]} 49. Ra1 {[%emt 0:01:28]} Rd5 {[%emt 0:01:24]} 50. Ra5 {[%emt 0:00:16]} Ke6 {[%emt 0:00:17]} 51. Kb2 {[%emt 0:00:55]} Rd7 {[%emt 0:00:57]} 52. Rc5 {[%emt 0:00:33]} Rd5 {[%emt 0:00:21]} 53. Ka3 {[%emt 0:00:40]} Rxc5 {[%emt 0:00:31]} 54. Bxc5 {[%emt 0:00:05]} Be5 {[%emt 0:00:33]} 55. Bd4 {[%emt 0:00:21]} Bxd4 {[%emt 0:00:20]} 56. cxd4 {[%emt 0:00:03]} Kd5 {[%emt 0:00:03]} 57. b5 {[%emt 0:00:13]} Kxd4 {[%emt 0:00:56]} 58. b6 {[%emt 0:00:05]} c3 {[%emt 0:00:03]} 59. b7 {[%emt 0:00:03]} Kd3 {[%emt 0:01:15]} 60. b8=Q {[%emt 0:00:10]} c2 {[%emt 0:00:06]} 61. Kb2 {[%emt 0:00:06]} Kd2 {[%emt 0:00:09]} 62. Qd6+ {[%emt 0:00:05]} Ke2 {[%emt 0:00:23]} 63. Kxc2 {[%emt 0:00:05]} 1-0

[Event "2nd Asian Nations Team Cup U14 2019"]
[Site "Shenzhen"]
[Date "2019.12.21"]
[Round "3.11"]
[White "Meng, Yihan"]
[Black "Chen, Yuan"]
[Result "0-1"]
[ECO "B22"]
[WhiteElo "1787"]
[BlackElo "2056"]
[Annotator "NA RC"]
[PlyCount "156"]
[EventDate "2019.12.19"]
[EventType "team-tourn"]
[EventCountry "CHN"]
[SourceTitle "playchess.com"]
[Source "ChessBase"]
[SourceQuality "1"]
[TimeControl "5400+30"]

1. e4 {[%emt 0:00:07]} c5 {[%emt 0:00:00]} 2. Nf3 {[%emt 0:00:00]} e6 {[%emt 0:00:00]} 3. c3 {[%emt 0:00:00]} Nf6 {[%emt 0:00:00]} 4. e5 {[%emt 0:00:00]} Nd5 {[%emt 0:00:00]} 5. d4 {[%emt 0:00:00]} cxd4 {[%emt 0:00:00]} 6. cxd4 {[%emt 0:00:00]} d6 {[%emt 0:00:00]} 7. Bc4 {[%emt 0:00:38]} Nc6 {[%emt 0:00:11]} 8. O-O {[%emt 0:02:57]} Be7 {[%emt 0:00:09]} 9. Qe2 {[%emt 0:02:16]} O-O {[%emt 0:05:12]} 10. Qe4 {[%emt 0:12:52]} Nb6 {[%emt 0:14:24]} 11. Bd3 {[%emt 0:00:00]} g6 {[%emt 0:00:04]} 12. Bh6 {[%emt 0:00:00]} Re8 {[%emt 0:00:31]} 13. Nbd2 {[%emt 0:11:50]} dxe5 {[%emt 0:10:56]} 14. dxe5 {[%emt 0:12:12]} Nd7 {[%emt 0:14:57]} 15. Qf4 {[%emt 0:05:05]} Nb4 {[%emt 0:04:48]} 16. Bc4 {[%emt 0:02:08]} Nd5 {[%emt 0:07:43]} 17. Bxd5 {[%emt 0:00:00]} exd5 {[%emt 0:00:00]} 18. Ng5 {[%emt 0:10:23]} Bxg5 {[%emt 0:00:33]} 19. Bxg5 {[%emt 0:13:57]} Qc7 {[%emt 0:14:50]} 20. Nf3 {[%emt 0:11:13]} f6 {[%emt 0:12:44]} 21. Rac1 {[%emt 0:00:00]} fxe5 {[%emt 0:00:17]} 22. Rxc7 {[%emt 0:00:00]} exf4 {[%emt 0:06:14]} 23. Bh6 {[%emt 0:06:16]} Kf7 {[%emt 0:01:19]} 24. Ng5+ {[%emt 0:00:43]} Ke7 {[%emt 0:04:38]} 25. Re1+ {[%emt 0:00:00]} Kd8 {[%emt 0:00:00]} 26. Nf7+ {[%emt 0:00:00]} Kxc7 {[%emt 0:00:00]} 27. Rxe8 {[%emt 0:00:00]} Nb6 {[%emt 0:01:07]} 28. Re7+ {[%emt 0:01:14]} Kc6 {[%emt 0:00:52]} 29. Bxf4 {[%emt 0:00:00]} Bf5 {[%emt 0:04:16]} 30. g4 {[%emt 0:00:00]} Bb1 {[%emt 0:01:04]} 31. Rc7+ {[%emt 0:00:00]} Kb5 {[%emt 0:00:00]} 32. Nd6+ {[%emt 0:00:00]} Ka6 {[%emt 0:00:00]} 33. Rc1 {[%emt 0:00:13]} Be4 {[%emt 0:03:05]} 34. f3 {[%emt 0:00:00]} Rf8 {[%emt 0:00:00]} 35. Rc3 {[%emt 0:00:00]} Na4 {[%emt 0:00:00]} 36. Ra3 {[%emt 0:00:00]} Bc2 {[%emt 0:04:17]} 37. Be3 {[%emt 0:02:26]} Rxf3 {[%emt 0:00:00]} 38. Kg2 {[%emt 0:00:00]} Rf6 {[%emt 0:00:00]} 39. Ne8 {[%emt 0:00:23]} Rc6 {[%emt 0:00:25]} 40. b3 {[%emt 0:00:00]} b5 {[%emt 0:00:00]} 41. Bd2 {[%emt 0:00:00]} Kb7 42. bxa4 {[%emt 0:02:58]} Re6 {[%emt 0:02:44]} 43. axb5 {[%emt 0:00:00]} Re2+ {[%emt 0:03:27]} 44. Kf1 {[%emt 0:00:00]} Rxd2 {[%emt 0:00:00]} 45. Rc3 {[%emt 0:00:00]} Ba4 {[%emt 0:16:51]} 46. Nd6+ {[%emt 0:00:01]} Kb6 {[%emt 0:00:00]} 47. Nc8+ {[%emt 0:00:02]} Kxb5 {[%emt 0:00:36]} 48. Nxa7+ {[%emt 0:00:02]} Kb4 {[%emt 0:00:00]} 49. Rh3 {[%emt 0:00:25]} d4 {[%emt 0:01:20]} 50. a3+ {[%emt 0:04:02]} Kc4 {[%emt 0:00:00]} 51. Nc8 {[%emt 0:00:29]} Rb2 {[%emt 0:03:46]} 52. Rxh7 {[%emt 0:03:14]} d3 {[%emt 0:01:18]} 53. Rc7+ {[%emt 0:00:54]} Kd4 {[%emt 0:00:22]} 54. Ra7 {[%emt 0:01:08]} Rb1+ {[%emt 0:00:00]} 55. Kf2 {[%emt 0:00:08]} d2 {[%emt 0:00:49]} 56. Rxa4+ {[%emt 0:00:14]} Kc3 {[%emt 0:01:56]} 57. Nd6 {[%emt 0:01:56]} d1=Q {[%emt 0:00:00]} 58. Ne4+ {[%emt 0:00:08]} Kb2 {[%emt 0:00:45]} 59. Rb4+ {[%emt 0:00:34]} Kxa3 {[%emt 0:00:00]} 60. Rxb1 {[%emt 0:00:15]} Qxb1 {[%emt 0:00:00]} 61. Kf3 {[%emt 0:00:17]} Qh1+ {[%emt 0:00:17]} 62. Ke3 {[%emt 0:00:25]} Qxh2 {[%emt 0:00:09]} 63. g5 {[%emt 0:00:16]} Qe5 {[%emt 0:00:00]} 64. Kd3 {[%emt 0:00:20]} Kb4 {[%emt 0:00:31]} 65. Ke3 {[%emt 0:00:14]} Kc4 {[%emt 0:00:05]} 66. Kf3 {[%emt 0:00:19]} Kd4 {[%emt 0:00:08]} 67. Ng3 {[%emt 0:00:23]} Qxg5 {[%emt 0:00:00]} 68. Kf2 {[%emt 0:00:14]} Ke5 {[%emt 0:00:00]} 69. Ne2 {[%emt 0:00:16]} Qh4+ {[%emt 0:00:00]} 70. Kf3 {[%emt 0:00:17]} g5 {[%emt 0:00:00]} 71. Ng3 {[%emt 0:00:12]} g4+ {[%emt 0:00:00]} 72. Kg2 {[%emt 0:00:14]} Qh3+ {[%emt 0:00:00]} 73. Kg1 {[%emt 0:00:21]} Qxg3+ {[%emt 0:00:00]} 74. Kh1 {[%emt 0:00:05]} Qf4 {[%emt 0:00:00]} 75. Kg2 {[%emt 0:00:18]} g3 {[%emt 0:00:00]} 76. Kh3 {[%emt 0:00:09]} Kf5 {[%emt 0:00:00]} 77. Kg2 {[%emt 0:00:06]} Qf2+ {[%emt 0:00:00]} 78. Kh3 {[%emt 0:00:06]} Qh2# {[%emt 0:00:11]} 0-1